bitfinex/quotes_SOLUSD_20250422
["timestamp","ask_amount","ask_price","bid_price","bid_amount"]
[1745335149536,0.063,145.07,145.0,82.6]
[1745335149861,38.21757866,145.01,145.0,82.6]
[1745335150048,18.64964886,145.0,144.9,82.6]
[1745335150556,6.8975031,144.98,144.91,38.21757866]
[1745335150734,38.21757866,144.96,144.91,38.21757866]
[1745335150938,6.8975031,144.98,144.92,38.21757866]
[1745335151161,6.8975031,144.98,144.92,82.6]
[1745335151338,6.8975031,144.98,144.93,38.21757866]
[1745335151540,6.8975031,144.98,144.92,108.6]
[1745335151859,6.8975031,144.98,144.93,38.21757866]
[1745335152060,38.21757866,144.97,144.92,108.6]
[1745335152455,38.21757866,144.97,144.93,38.21757866]
[1745335152762,45.11556993,144.97,144.93,38.21757866]
[1745335152931,6.89702738,144.99,144.94,38.21757866]
[1745335153135,13.30655823,145.01,144.97,38.21757866]
[1745335153357,38.21757866,145.03,144.98,38.21757866]
[1745335153557,38.21757866,145.03,144.99,38.21757866]
[1745335153867,6.89464975,145.04,145.01,38.21757866]
[1745335154339,45.11222841,145.04,144.99,38.21757866]
[1745335154548,6.89464975,145.04,144.98,26.0]
[1745335154761,6.89464975,145.04,144.98,108.6]
[1745335154970,45.11222841,145.04,145.0,38.21757866]
[1745335155156,6.89464975,145.04,144.98,108.6]
[1745335155661,6.89464975,145.04,145.01,38.21757866]
[1745335155865,6.89464975,145.04,145.0,38.21757866]
[1745335156158,6.89464975,145.04,144.98,108.6]
[1745335156390,6.89464975,145.04,144.99,38.21757866]
[1745335156563,6.89464975,145.04,145.01,38.21757866]
[1745335156871,0.063,145.07,145.03,38.21757866]
[1745335157045,6.95622636,145.07,145.05,38.21757866]
[1745335157245,0.063,145.07,145.04,38.21757866]
[1745335157646,0.063,145.07,145.03,82.6]
[1745335157849,0.063,145.07,145.05,38.21757866]
[1745335158050,0.063,145.07,145.04,38.21757866]
[1745335158438,38.28057866,145.07,145.03,82.6]
[1745335158668,38.21757866,145.06,145.03,82.6]
[1745335159048,38.21757866,145.04,145.03,82.6]
[1745335159252,38.21757866,145.04,145.0,82.6]
[1745335159455,38.21757866,145.02,145.0,82.6]
[1745335159847,38.21757866,145.01,145.0,82.6]
[1745335160070,38.21757866,145.01,144.93,82.6]
[1745335160277,38.21757866,144.97,144.93,82.6]
[1745335160572,38.21757866,144.97,144.93,108.6]
[1745335160769,38.21757866,144.96,144.93,82.6]
[1745335161080,38.21757866,144.94,144.93,82.6]
[1745335161381,38.21757866,144.94,144.9,26.0]
[1745335161542,38.21757866,144.94,144.91,26.0]
[1745335162347,45.11709449,144.94,144.91,26.0]
[1745335162880,6.89951583,144.94,144.91,26.0]
[1745335163080,45.11709449,144.94,144.91,26.0]
[1745335163243,38.21757866,144.92,144.88,82.663]
[1745335163442,6.89951583,144.94,144.88,0.063]
[1745335163443,38.21757866,144.91,144.88,0.063]
[1745335163666,24.14803245,144.94,144.88,0.063]
[1745335163950,38.21757866,144.9,144.88,0.063]
[1745335164379,45.11936622,144.89,144.88,0.063]
[1745335164869,6.90178756,144.89,144.88,0.063]
[1745335165075,45.11936622,144.89,144.88,0.063]
[1745335165279,6.90178756,144.89,144.88,0.063]
[1745335165473,45.11936622,144.89,144.88,0.063]
[1745335166572,6.90178756,144.89,144.88,0.063]
[1745335166795,6.0465,144.94,144.88,0.063]
[1745335166955,12.94590665,144.94,144.88,0.063]
[1745335167284,30.19442327,144.94,144.88,0.063]
[1745335167466,38.21757866,144.89,144.88,0.063]
[1745335167679,38.21757866,144.92,144.88,0.063]
[1745335167883,38.21757866,144.9,144.88,0.063]
[1745335168083,30.19442327,144.94,144.88,0.063]
[1745335168268,38.21757866,144.91,144.88,0.063]
[1745335168963,12.94600521,144.94,144.88,0.063]
[1745335169267,38.21757866,144.93,144.89,38.21757866]
[1745335169484,12.9440031,144.98,144.92,38.21757866]
[1745335169687,51.16158176,144.98,144.93,38.21757866]
[1745335170174,12.9440031,144.98,144.91,26.0]
[1745335170374,51.16158176,144.98,144.93,38.21757866]
[1745335170570,6.0465,144.98,144.95,38.21757866]
[1745335170893,45.11372484,145.01,144.96,38.21757866]
[1745335171267,44.26407866,145.03,144.98,38.21757866]
[1745335171478,6.0465,145.03,144.99,38.21757866]
[1745335171677,6.0465,145.03,144.99,120.81757866]
[1745335171879,6.89431341,145.05,144.99,82.6]
[1745335172078,0.063,145.07,145.02,26.0]
[1745335172459,0.063,145.07,145.03,38.21757866]
[1745335172659,0.063,145.07,145.02,26.0]
[1745335172873,0.063,145.07,145.04,38.21757866]
[1745335173798,0.063,145.07,145.02,26.0]
[1745335174168,0.063,145.07,145.04,58.06577414]
[1745335174785,0.063,145.07,145.03,58.06577414]
[1745335175091,58.06577414,145.05,145.01,58.06577414]
[1745335175288,0.063,145.07,144.99,26.0]
[1745335175493,58.06577414,145.05,145.01,58.06577414]
[1745335175695,58.12877414,145.07,145.02,58.06577414]
[1745335175876,58.12877414,145.07,145.03,58.06577414]
[1745335176286,58.12877414,145.07,145.02,58.06577414]
[1745335176480,6.89417442,145.05,145.01,58.06577414]
[1745335178073,58.06577414,145.02,144.97,82.6]
[1745335178379,58.06577414,145.01,144.96,58.06577414]
[1745335178580,6.4516,145.03,144.98,58.06577414]
[1745335178775,64.96051065,145.04,144.99,58.06577414]
[1745335179104,58.06577414,145.03,144.98,58.06577414]
[1745335179283,6.89473651,145.04,144.97,26.0]
[1745335179477,58.06577414,145.03,144.98,58.06577414]
[1745335179893,58.06577414,145.03,144.97,26.0]
[1745335180094,58.06577414,145.02,144.94,18.64964886]
[1745335180272,6.89473651,145.04,144.97,58.06577414]
[1745335180473,6.89425642,145.05,145.0,58.06577414]
[1745335180780,58.06577414,145.02,144.98,58.06577414]
[1745335180990,58.06577414,145.01,144.96,101.24964886]
[1745335181276,58.06577414,145.04,144.96,82.6]
[1745335181595,58.06577414,145.01,144.96,140.66577414]
[1745335181803,58.06577414,145.0,144.96,82.6]
[1745335182187,58.06577414,145.04,144.96,140.66577414]
[1745335182376,6.89425642,145.05,144.98,58.06577414]
[1745335182683,58.06577414,145.01,144.96,82.6]
[1745335182884,58.06577414,144.99,144.94,84.06577414]
[1745335183093,58.06577414,144.97,144.92,0.03]
[1745335183282,58.06577414,144.96,144.92,0.03]
[1745335183483,26.0,145.02,144.92,58.09577414]
[1745335183687,58.06577414,144.97,144.92,0.03]
[1745335183989,58.06577414,144.96,144.92,0.03]
[1745335184171,58.06577414,144.95,144.92,0.03]
[1745335184367,58.06577414,144.94,144.92,0.03]
[1745335184596,58.06577414,144.95,144.92,0.03]
[1745335184802,43.24265696,144.99,144.92,0.03]
[1745335185096,58.06577414,144.95,144.92,0.03]
[1745335185300,24.14126085,144.98,144.92,0.03]
[1745335185469,58.06577414,144.95,144.92,0.03]
[1745335186176,24.14126085,144.98,144.92,0.03]
[1745335186390,6.8975031,144.98,144.94,58.06577414]
[1745335186586,64.96327724,144.98,144.93,58.06577414]
[1745335186791,58.06577414,144.97,144.92,58.09577414]
[1745335187178,58.06577414,144.97,144.92,0.03]
[1745335187375,58.06577414,144.95,144.92,0.03]
[1745335187807,24.14126085,144.98,144.92,0.03]
[1745335188093,58.06577414,144.97,144.92,58.09577414]
[1745335188270,58.06577414,144.96,144.92,0.03]
[1745335188699,6.89893066,144.95,144.92,0.03]
[1745335189091,58.06577414,144.93,144.92,0.03]
[1745335189393,6.89893066,144.95,144.92,0.03]
[1745335189602,64.9647048,144.95,144.92,0.03]
[1745335189778,58.06577414,144.93,144.92,0.03]
[1745335190200,6.89893066,144.95,144.92,0.03]
[1745335190580,58.06577414,144.93,144.92,0.03]
[1745335190782,6.8998827,144.93,144.92,0.03]
[1745335190977,64.96565684,144.93,144.92,0.03]
[1745335191186,6.8998827,144.93,144.92,0.03]
[1745335191385,6.89893066,144.95,144.92,58.09577414]
[1745335191596,6.89893066,144.95,144.92,0.03]
[1745335191896,82.21203146,144.95,144.92,0.03]
[1745335192099,24.14625732,144.95,144.92,0.03]
[1745335192301,6.89893066,144.95,144.92,0.03]
[1745335192484,6.89797889,144.97,144.93,58.06577414]
[1745335193403,82.20870026,144.97,144.93,58.06577414]
[1745335193587,82.20870026,144.97,144.92,58.09577414]
[1745335194303,6.89702738,144.99,144.95,58.06577414]
[1745335194477,12.9924023,145.0,144.97,58.06577414]
[1745335194678,12.9924023,145.0,144.92,18.67964886]
[1745335194993,12.9924023,145.0,144.97,58.06577414]
[1745335195581,6.89623832,145.01,144.95,26.0]
[1745335195785,6.89464975,145.04,145.0,38.31789669]
[1745335196095,6.89464975,145.04,145.01,38.31789669]
[1745335196695,6.89464975,145.04,144.98,18.64964886]
[1745335196897,6.89464975,145.04,144.99,38.31789669]
[1745335197103,6.89464975,145.04,145.01,38.31789669]
[1745335197293,6.89464975,145.04,145.0,38.31789669]
[1745335197807,6.89369915,145.06,145.02,38.31789669]
[1745335197976,6.89369915,145.06,145.0,82.6]
[1745335198181,6.95632871,145.07,145.05,38.31789669]
[1745335198376,6.95632871,145.07,145.04,38.31789669]
[1745335198681,0.063,145.07,145.05,38.31789669]
[1745335199109,0.063,145.07,145.01,18.64964886]
[1745335199412,0.063,145.07,145.04,38.31789669]
[1745335199578,0.063,145.07,145.06,38.31789669]
[1745335200710,0.063,145.07,145.06,165.56754555]
[1745335201428,0.063,145.07,145.06,82.6]
[1745335201783,0.063,145.07,145.05,38.31789669]
[1745335201985,0.063,145.07,145.06,38.31789669]
[1745335202690,0.063,145.07,145.03,82.6]
[1745335202893,45.27412065,145.07,145.03,82.6]
[1745335203506,50.18928386,145.07,144.99,82.6]
[1745335203700,88.50718055,145.07,145.02,38.31789669]
[1745335203900,50.18928386,145.07,145.03,38.31789669]
[1745335204206,24.18928386,145.07,145.03,38.31789669]
[1745335204392,24.18928386,145.07,145.01,38.31789669]
[1745335204589,24.18928386,145.07,145.03,38.31789669]
[1745335204789,62.50718055,145.07,145.03,38.31789669]
[1745335205016,62.50718055,145.07,144.99,108.6]
[1745335205225,6.95622396,145.07,144.99,82.6]
[1745335205420,24.18928386,145.07,145.03,38.31789669]
[1745335205730,24.18928386,145.07,145.02,38.31789669]
[1745335205931,26.0,145.06,145.01,38.31789669]
[1745335206099,64.31789669,145.06,145.01,38.31789669]
[1745335206299,62.50718055,145.07,145.02,38.31789669]
[1745335206523,0.063,145.07,145.05,38.31789669]
[1745335206830,38.31789669,145.06,145.01,82.6]
[1745335207125,38.31789669,145.05,145.01,82.6]
[1745335207623,64.31789669,145.04,145.01,82.6]
[1745335207800,64.31789669,145.04,144.97,38.31789669]
[1745335207801,38.31789669,145.02,144.97,82.6]
[1745335208002,64.31789669,145.04,144.97,82.6]
[1745335208200,26.0,145.04,144.97,120.91789669]
[1745335208415,6.5002,145.05,145.0,38.31789669]
[1745335208630,38.31789669,145.03,144.97,82.6]
[1745335208809,6.89607613,145.01,144.98,38.31789669]
[1745335209008,45.21397282,145.01,144.97,82.6]
[1745335209410,62.45416315,145.01,144.97,82.6]
[1745335209622,38.31789669,145.0,144.97,82.6]
[1745335209831,38.31789669,144.98,144.93,82.63]
[1745335210021,38.31789669,144.98,144.94,38.31789669]
[1745335210198,24.13626646,145.01,144.94,38.31789669]
[1745335210402,38.31789669,144.99,144.95,38.31789669]
[1745335210800,50.13242385,145.04,144.98,38.31789669]
[1745335211004,38.31789669,145.03,144.98,38.31789669]
[1745335211219,38.31789669,145.03,144.99,38.31789669]
[1745335211399,38.31789669,145.03,144.98,38.31789669]
[1745335211806,38.31789669,145.03,144.95,18.64964886]
[1745335212009,38.31789669,145.03,144.98,38.31789669]
[1745335212208,50.13127412,145.04,144.95,101.24964886]
[1745335212412,50.13127412,145.04,144.98,38.31789669]
[1745335212728,50.13127412,145.04,144.95,101.24964886]
[1745335212921,38.31789669,145.03,144.98,38.31789669]
[1745335213121,38.31789669,145.02,144.97,38.31789669]
[1745335213303,38.31789669,145.02,144.97,120.91789669]
[1745335213503,50.13127412,145.04,144.97,120.91789669]
[1745335213804,38.31789669,145.02,144.97,120.91789669]
[1745335214132,50.13127412,145.04,144.97,82.6]
[1745335214133,38.31789669,144.99,144.97,82.6]
[1745335214431,38.31789669,144.98,144.93,120.94789669]
[1745335214810,6.89702738,144.99,144.93,120.94789669]
[1745335215003,38.31789669,144.98,144.93,120.94789669]
[1745335215722,38.31789669,144.98,144.93,82.63]
[1745335215897,38.31789669,144.98,144.93,120.94789669]
[1745335216331,24.13959583,144.99,144.93,120.94789669]
[1745335216503,24.13959583,144.99,144.93,0.03]
[1745335216504,38.31789669,144.95,144.93,0.03]
[1745335216709,6.2194,144.97,144.93,0.03]
[1745335216902,71.21730334,144.94,144.93,0.03]
[1745335217327,71.21730334,144.94,144.92,0.03]
[1745335217535,38.31789669,144.93,144.88,0.063]
[1745335217717,38.31789669,144.89,144.88,0.063]
[1745335218926,45.21968425,144.89,144.88,0.063]
[1745335219603,6.90178756,144.89,144.88,0.063]
[1745335220230,29.8,144.95,144.88,0.063]
[1745335220416,38.31789669,144.91,144.88,0.063]
[1745335220618,38.31789669,144.89,144.88,0.063]
[1745335220836,38.31789669,144.9,144.88,0.063]
[1745335221011,6.8998827,144.93,144.88,0.063]
[1745335221210,6.8998827,144.93,144.88,38.38089669]
[1745335221413,38.31789669,144.92,144.88,38.38089669]
[1745335221819,38.31789669,144.92,144.88,0.063]
[1745335222011,38.31789669,144.9,144.88,0.063]
[1745335222312,38.31789669,144.89,144.88,0.063]
[1745335223035,6.90178756,144.89,144.88,0.063]
[1745335223214,45.21968425,144.89,144.88,0.063]
[1745335223524,61.89935561,144.93,144.88,0.063]
[1745335223525,6.90035881,144.92,144.88,0.063]
[1745335223829,45.2182555,144.92,144.88,0.063]
[1745335224024,38.31789669,144.91,144.88,0.063]
[1745335224223,45.2182555,144.92,144.88,38.38089669]
[1745335224731,45.2182555,144.92,144.88,0.063]
[1745335224940,38.31789669,144.91,144.88,0.063]
[1745335225129,45.21920793,144.9,144.88,0.063]
[1745335225734,6.90131124,144.9,144.88,0.063]
[1745335225918,6.8998827,144.93,144.88,0.063]
[1745335226113,38.31789669,144.92,144.88,0.063]
[1745335226329,38.31789669,144.91,144.88,0.063]
[1745335226909,38.31789669,144.92,144.88,0.063]
[1745335227204,38.31789669,144.93,144.88,38.38089669]
[1745335227408,45.21730334,144.94,144.89,38.31789669]
[1745335227630,45.21730334,144.94,144.9,38.31789669]
[1745335227830,45.21730334,144.94,144.89,38.31789669]
[1745335228039,45.21730334,144.94,144.88,0.063]
[1745335228040,38.31789669,144.92,144.88,0.063]
[1745335228532,6.89940665,144.94,144.91,38.31789669]
[1745335228742,6.89940665,144.94,144.92,38.31789669]
[1745335229123,6.89900945,144.95,144.92,38.31789669]
[1745335229438,6.89900945,144.95,144.91,38.31789669]
[1745335229640,6.89900945,144.95,144.92,38.31789669]
[1745335230227,6.89861871,144.96,144.93,38.31789669]
[1745335230433,6.89861871,144.96,144.94,38.31789669]
[1745335231230,55.56050598,144.99,144.95,38.31789669]
[1745335231231,6.89702738,144.99,144.95,38.31789669]
[1745335231419,6.89702738,144.99,144.97,38.31789669]
[1745335231936,6.89702738,144.99,144.96,38.31789669]
[1745335232129,6.89702738,144.99,144.95,38.31789669]
[1745335232308,45.21492407,144.99,144.95,38.31789669]
[1745335233427,38.31789669,144.98,144.94,38.31789669]
[1745335233825,38.31789669,144.97,144.9,82.6]
[1745335234041,38.31789669,144.96,144.9,108.6]
[1745335234247,24.13959583,144.99,144.9,108.6]
[1745335234248,24.13959583,144.99,144.91,1.72293448]
[1745335234422,38.31789669,144.96,144.91,40.04083117]
[1745335234624,38.31789669,144.97,144.92,38.31789669]
[1745335234821,26.0,144.98,144.94,38.31789669]
[1745335235432,6.89797889,144.97,144.91,18.64964886]
[1745335235636,6.89797889,144.97,144.93,38.31789669]
[1745335236218,6.89797889,144.97,144.91,101.24964886]
[1745335236536,6.89797889,144.97,144.93,38.31789669]
[1745335236727,6.89797889,144.97,144.94,38.31789669]
[1745335236929,6.89797889,144.97,144.91,101.24964886]
[1745335237138,45.21444841,145.0,144.95,38.31789669]
[1745335237335,6.8975031,144.98,144.95,38.31789669]
[1745335238119,6.8975031,144.98,144.94,38.31789669]
[1745335238316,45.21539979,144.98,144.93,38.31789669]
[1745335238519,45.21539979,144.98,144.91,101.24964886]
[1745335238716,6.8975031,144.98,144.94,38.31789669]
[1745335239657,45.21539979,144.98,144.93,38.31789669]
[1745335239943,6.8975031,144.98,144.94,38.31789669]
[1745335240456,45.21539979,144.98,144.93,38.31789669]
[1745335240635,38.31789669,144.97,144.92,38.31789669]
[1745335241057,6.8975031,144.98,144.93,38.31789669]
[1745335241058,45.21539979,144.98,144.93,38.31789669]
[1745335241235,38.31789669,144.97,144.91,82.6]
[1745335241419,64.31789669,144.95,144.91,82.6]
[1745335241750,38.31789669,144.92,144.91,82.6]
[1745335241956,38.31789669,144.93,144.88,120.98089669]
[1745335242245,38.31789669,144.92,144.88,82.663]
[1745335242559,38.31789669,144.9,144.88,82.663]
[1745335242858,38.31789669,144.89,144.88,0.063]
[1745335243756,45.21968425,144.89,144.88,0.063]
[1745335244061,6.90178756,144.89,144.88,0.063]
[1745335244636,45.21968425,144.89,144.88,0.063]
[1745335247354,6.90178756,144.89,144.88,0.063]
[1745335247559,45.21968425,144.89,144.88,0.063]
[1745335252035,63.86933311,144.89,144.88,0.063]
[1745335252444,6.90178756,144.89,144.88,0.063]
[1745335252637,63.86933311,144.89,144.88,0.063]
[1745335253661,6.90178756,144.89,144.88,0.063]
[1745335253846,17.25163125,144.92,144.88,0.063]
[1745335253847,24.15199006,144.92,144.88,0.063]
[1745335254047,38.31789669,144.9,144.88,0.063]
[1745335254247,24.15199006,144.92,144.88,0.063]
[1745335254562,6.90035881,144.92,144.88,0.063]
[1745335254758,6.90035881,144.92,144.88,38.38089669]
[1745335254953,6.90035881,144.92,144.88,0.063]
[1745335255166,6.90006259,144.93,144.89,38.31789669]
[1745335255548,6.90006259,144.93,144.9,38.31789669]
[1745335256057,6.90006259,144.93,144.89,38.31789669]
[1745335256253,45.21795928,144.93,144.89,38.31789669]
[1745335256764,6.90006259,144.93,144.89,38.31789669]
[1745335256955,38.31789669,144.91,144.88,0.063]
[1745335257151,38.31789669,144.9,144.88,0.063]
[1745335257358,38.31789669,144.89,144.88,0.063]
[1745335258066,45.21968425,144.89,144.88,0.063]
[1745335258457,6.90178756,144.89,144.88,0.063]
[1745335258659,45.21968425,144.89,144.88,0.063]
[1745335259244,51.66688425,144.89,144.88,0.063]
[1745335260377,13.34898756,144.89,144.88,0.063]
[1745335260545,6.90147017,144.9,144.88,0.063]
[1745335261164,6.4472,144.94,144.88,38.38089669]
[1745335261512,38.31789669,144.93,144.88,82.663]
[1745335261659,38.31789669,144.92,144.88,82.663]
[1745335261974,50.14802152,144.94,144.88,120.98089669]
[1745335262147,38.31789669,144.95,144.9,38.31789669]
[1745335262343,38.31789669,144.95,144.88,82.663]
[1745335262554,38.31789669,144.95,144.9,38.31789669]
[1745335262854,38.31789669,144.94,144.9,38.31789669]
[1745335263259,38.31789669,144.94,144.89,38.31789669]
[1745335263766,38.31789669,144.93,144.88,120.98089669]
[1745335264270,45.21945265,144.9,144.88,0.063]
[1745335264467,6.90155596,144.9,144.88,0.063]
[1745335264669,6.90100852,144.91,144.88,0.063]
[1745335266477,45.21890521,144.91,144.88,0.063]
[1745335266977,38.31789669,144.9,144.88,0.063]
[1745335267175,6.90100852,144.91,144.88,0.063]
[1745335267378,38.31789669,144.9,144.88,0.063]
[1745335267860,38.31789669,144.89,144.88,0.063]
[1745335268862,51.66688425,144.89,144.88,0.063]
[1745335269279,13.34898756,144.89,144.88,0.063]
[1745335269484,51.66688425,144.89,144.88,0.063]
[1745335271686,70.31653311,144.89,144.88,0.063]
[1745335271984,18.64964886,144.88,144.87,0.03]
[1745335272289,56.96754555,144.88,144.87,0.03]
[1745335272668,13.34898756,144.89,144.87,0.03]
[1745335272882,38.31789669,144.88,144.87,0.03]
[1745335273079,13.34898756,144.89,144.87,0.03]
[1745335273280,38.31789669,144.88,144.87,0.03]
[1745335275286,6.90226394,144.88,144.87,0.03]
[1745335275493,6.90198698,144.89,144.87,0.03]
[1745335275786,45.21988367,144.89,144.87,0.03]
[1745335276087,6.90198698,144.89,144.87,0.03]
[1745335276295,6.8998827,144.93,144.87,38.34789669]
[1745335276501,6.89958363,144.94,144.89,38.31789669]
[1745335276693,6.89958363,144.94,144.9,38.31789669]
[1745335276879,6.89958363,144.94,144.87,82.63]
[1745335277089,45.21748032,144.94,144.89,38.31789669]
[1745335277284,38.31789669,144.92,144.88,1.72334545]
[1745335277588,24.14625732,144.95,144.88,38.31789669]
[1745335278188,38.31789669,144.89,144.87,0.03]
[1745335278392,38.31789669,144.88,144.87,0.03]
[1745335278567,18.64964886,144.92,144.87,0.03]
[1745335278769,24.14625732,144.95,144.87,0.03]
[1745335278975,38.31789669,144.89,144.87,0.03]
[1745335279280,6.90226394,144.88,144.87,0.03]
[1745335279484,45.22016063,144.88,144.87,0.03]
[1745335280387,6.90226394,144.88,144.87,0.03]
[1745335280983,45.22016063,144.88,144.87,0.03]
[1745335282074,51.85566063,144.88,144.87,0.03]
[1745335282276,70.50530949,144.88,144.87,0.03]
[1745335284902,32.1874128,144.88,144.87,0.03]
[1745335285087,70.50530949,144.88,144.87,0.03]
[1745335287182,96.50530949,144.88,144.87,0.03]
[1745335291886,58.1874128,144.88,144.87,0.03]
[1745335292089,96.50530949,144.88,144.87,0.03]
[1745335292494,77.85566063,144.88,144.87,0.03]
[1745335292989,32.90226394,144.88,144.87,0.03]
[1745335293200,71.22016063,144.88,144.87,0.03]
[1745335293390,56.90346509,144.88,144.87,0.03]
[1745335294509,6.6355,144.92,144.87,0.03]
[1745335294697,6.6355,144.92,144.87,24.03120115]
[1745335295000,32.6355,144.92,144.87,0.03]
[1745335295198,24.00120115,144.91,144.87,0.03]
[1745335296006,24.00120115,144.92,144.87,24.03120115]
[1745335296388,24.00120115,144.92,144.88,1.723577]
[1745335296582,6.6355,144.96,144.89,24.00120115]
[1745335296796,24.00120115,144.95,144.9,24.00120115]
[1745335297302,50.00120115,144.96,144.91,24.00120115]
[1745335297681,24.00120115,144.95,144.87,82.63]
[1745335297893,24.00120115,144.94,144.88,1.72322211]
[1745335298095,24.00120115,144.94,144.89,24.00120115]
[1745335298304,24.00120115,144.94,144.9,1.72322211]
[1745335298495,26.0,144.96,144.9,25.72442326]
[1745335298696,24.00120115,144.95,144.91,1.72322211]
[1745335299098,24.00120115,144.95,144.9,24.00120115]
[1745335299099,24.00120115,144.94,144.89,24.00120115]
[1745335299311,24.00120115,144.93,144.87,82.63]
[1745335299510,26.0,144.96,144.9,1.7233119]
[1745335299511,38.36826807,144.91,144.9,1.7233119]
[1745335299815,18.64964886,144.9,144.88,1.7233119]
[1745335300006,44.64964886,144.89,144.88,1.7233119]
[1745335300183,83.01791693,144.89,144.87,0.03]
[1745335300391,38.36826807,144.88,144.87,0.03]
[1745335301708,26.0,144.89,144.87,0.03]
[1745335301909,38.36826807,144.88,144.87,0.03]
[1745335303911,57.01791693,144.88,144.87,0.03]
[1745335304593,38.36826807,144.88,144.87,0.03]
[1745335304909,8.0863,144.91,144.87,0.03]
[1745335305212,38.36826807,144.88,144.87,0.03]
[1745335305807,57.01791693,144.88,144.87,0.03]
[1745335310493,18.64964886,144.88,144.87,0.03]
[1745335310695,64.36826807,144.88,144.87,0.03]
[1745335310924,83.01791693,144.88,144.87,0.03]
[1745335312690,26.0,144.88,144.87,0.03]
[1745335312919,38.36826807,144.88,144.87,0.03]
[1745335313108,64.36826807,144.88,144.87,0.03]
[1745335313495,27.7097,144.81,144.78,0.063]
[1745335313693,44.64964886,144.78,144.77,0.063]
[1745335314046,89.92494828,144.78,144.77,0.063]
[1745335315809,6.90703135,144.78,144.77,0.063]
[1745335316014,6.90655432,144.79,144.77,0.063]
[1745335316215,38.36826807,144.78,144.77,0.063]
[1745335318631,45.27529942,144.78,144.77,0.063]
[1745335318924,63.92494828,144.78,144.77,0.063]
[1745335319511,45.27529942,144.78,144.77,0.063]
[1745335320726,45.27482239,144.79,144.77,0.063]
[1745335320898,38.36826807,144.78,144.77,0.063]
[1745335321300,6.90655432,144.79,144.77,0.063]
[1745335321505,45.27482239,144.79,144.77,0.063]
[1745335322503,6.90655432,144.79,144.77,0.063]
[1745335322811,38.36826807,144.82,144.77,38.43126807]
[1745335323016,45.27404796,144.81,144.77,0.063]
[1745335323525,6.90577989,144.81,144.77,38.43126807]
[1745335323908,6.90525021,144.82,144.78,38.36826807]
[1745335324627,45.27487804,144.79,144.77,0.063]
[1745335324817,6.90660997,144.79,144.77,0.063]
[1745335325008,26.0,144.84,144.77,38.43126807]
[1745335325215,6.90512012,144.83,144.79,38.36826807]
[1745335325417,6.90369347,144.85,144.8,38.36826807]
[1745335325610,25.5519128,144.88,144.8,26.0]
[1745335325815,38.36826807,144.86,144.8,26.0]
[1745335326013,38.36826807,144.85,144.8,64.36826807]
[1745335326216,38.36826807,144.85,144.77,82.663]
[1745335326418,42.80757265,144.88,144.8,38.36826807]
[1745335326725,38.36826807,144.86,144.81,38.36826807]
[1745335327031,42.80757265,144.88,144.81,38.36826807]
[1745335327330,42.80757265,144.88,144.83,38.36826807]
[1745335327331,45.27053201,144.88,144.83,38.36826807]
[1745335327631,38.36826807,144.85,144.79,110.1014]
[1745335327840,38.36826807,144.83,144.79,108.6]
[1745335328022,18.64964886,144.87,144.79,82.6]
[1745335328207,38.36826807,144.81,144.79,82.6]
[1745335328409,38.36826807,144.81,144.77,0.063]
[1745335328626,38.36826807,144.78,144.77,0.063]
[1745335329129,57.01791693,144.78,144.77,0.063]
[1745335330014,6.90700471,144.79,144.77,0.063]
[1745335330412,6.9051236,144.82,144.77,0.063]
[1745335330733,6.90607734,144.8,144.77,0.063]
[1745335331730,38.36826807,144.79,144.77,0.063]
[1745335332409,6.90464682,144.83,144.77,38.43126807]
[1745335332610,38.36826807,144.82,144.77,38.43126807]
[1745335332811,45.27291489,144.83,144.77,0.063]
[1745335333013,6.90321689,144.86,144.8,38.36826807]
[1745335333213,38.36826807,144.85,144.8,38.36826807]
[1745335333427,38.36826807,144.83,144.78,38.36826807]
[1745335333834,38.36826807,144.84,144.79,38.36826807]
[1745335334013,24.16125913,144.86,144.77,0.063]
[1745335334014,38.36826807,144.83,144.77,0.063]
[1745335334214,24.16125913,144.86,144.77,38.43126807]
[1745335334542,26.0,144.84,144.77,0.063]
[1745335334709,6.90464682,144.83,144.78,38.36826807]